bitfinex/quotes_SOLUSD_20230102
["timestamp","ask_amount","ask_price","bid_price","bid_amount"]
[1672658415452,91.2615,11.008,11.0,30.0]
[1672658415626,23.0315,11.008,11.0,30.0]
[1672658416364,23.0315,11.008,11.0,68.28]
[1672658416578,30.0,11.007,11.0,68.28]
[1672658416898,30.0,11.007,10.999,132.2523]
[1672658417116,30.0,11.005,10.999,132.2523]
[1672658417753,68.26,11.004,10.992,68.33]
[1672658418050,50.0,11.003,10.992,30.0]
[1672658418276,68.27,11.002,10.992,30.0]
[1672658418456,20.0,11.001,10.992,30.0]
[1672658418683,68.28,11.0,10.992,30.0]
[1672658418906,20.0,10.999,10.992,30.0]
[1672658420270,20.0,11.0,10.992,30.0]
[1672658423212,20.0,11.0,10.994,30.0]
[1672658427211,20.0,11.0,10.992,98.33]
[1672658428137,20.0,11.0,10.992,68.33]
[1672658428351,20.0,11.0,10.991,30.0]
[1672658428565,110.9555,11.0,10.991,30.0]
[1672658430678,42.6755,11.0,10.991,30.0]
[1672658432573,42.6755,11.0,10.993,30.0]
[1672658433631,42.6755,11.0,10.991,98.34]
[1672658435489,22.6755,11.0,10.991,98.34]
[1672658435703,23.4267,11.012,10.992,32.80730786]
[1672658435916,47.0614,11.009,10.993,88.33]
[1672658436124,30.0,11.007,10.995,30.0]
[1672658436334,98.24,11.007,10.997,30.0]
[1672658436539,121.3386,11.007,10.998,68.3]
[1672658436882,121.3386,11.007,10.997,98.3]
[1672658437079,121.3386,11.007,10.997,122.3027]
[1672658437503,17.0,11.006,10.997,122.3027]
[1672658439173,17.0,11.006,10.997,92.3027]
[1672658439386,17.0,11.006,10.997,24.0027]
[1672658439595,30.0,11.004,10.997,24.0027]
[1672658440231,98.26,11.004,10.997,24.0027]
[1672658441102,30.0,11.004,10.997,24.0027]
[1672658441413,30.0,11.005,10.997,24.0027]
[1672658441819,68.25,11.006,10.997,54.0027]
[1672658445397,68.25,11.006,10.998,30.0]
[1672658445619,68.25,11.006,10.997,54.0027]
[1672658446460,30.0,11.005,10.997,24.0027]
[1672658446867,68.26,11.004,10.997,24.0027]
[1672658447519,68.25,11.005,10.997,24.0027]
[1672658448338,30.0,11.004,10.997,24.0027]
[1672658449399,30.0,11.002,10.997,24.0027]
[1672658449613,88.28,11.001,10.997,24.0027]
[1672658449813,88.28,11.001,10.991,98.34]
[1672658450016,111.8469,11.001,10.991,98.34]
[1672658451598,68.26,11.004,10.993,30.0]
[1672658451811,30.0,11.005,10.994,88.32]
[1672658452020,68.26,11.004,10.995,30.0]
[1672658452356,30.0,11.003,10.994,252.2915]
[1672658452967,17.0,11.002,10.995,30.0]
[1672658453180,68.26,11.004,10.995,54.3182]
[1672658453389,68.25,11.006,10.995,54.3182]
[1672658453597,68.25,11.006,10.997,30.0]
[1672658454242,68.25,11.006,10.997,54.3182]
[1672658454852,68.25,11.006,10.997,24.3182]
[1672658456338,30.0,11.005,10.997,24.3182]
[1672658456535,68.26,11.004,10.997,24.3182]
[1672658459184,30.0,11.005,10.997,24.3182]
[1672658459377,68.26,11.004,10.997,24.3182]
[1672658460635,30.0,11.003,10.99,68.35]
[1672658460858,88.27,11.002,10.99,68.35]
[1672658461073,30.0,11.0,10.99,68.35]
[1672658461387,98.28,11.0,10.99,68.35]
[1672658461907,122.7136,11.0,10.99,68.35]
[1672658462230,122.7136,11.0,10.991,30.0]
[1672658462429,122.7136,11.0,10.99,68.35]
[1672658462754,122.7136,11.0,10.989,210.8327]
[1672658463062,24.4336,10.999,10.99,30.0]
[1672658463912,24.4336,10.999,10.99,39.38]
[1672658465780,30.0,10.998,10.989,210.8327]
[1672658465998,98.3,10.998,10.989,210.8327]
[1672658466204,98.3,10.998,10.989,142.4827]
[1672658466523,17.0,10.997,10.99,30.0]
[1672658468005,14.0066412,10.997,10.99,30.0]
[1672658470325,14.0066412,10.997,10.989,210.8327]
[1672658470522,14.0066412,10.997,10.99,30.0]
[1672658476092,14.0066412,10.997,10.989,142.4827]
[1672658477025,14.0066412,10.997,10.99,30.0]
[1672658481439,91.0827,10.998,10.99,30.0]
[1672658481864,22.7827,10.998,10.99,30.0]
[1672658483030,22.7827,10.998,10.99,45.80730786]
[1672658483563,68.26,11.004,10.992,30.0]
[1672658483762,68.25,11.005,10.993,105.33]
[1672658484089,68.25,11.005,10.994,45.80730786]
[1672658484282,68.25,11.005,10.995,68.32]
[1672658484491,68.25,11.005,10.996,30.0]
[1672658484700,68.25,11.005,10.996,54.0503]
[1672658485771,68.25,11.006,10.996,54.0503]
[1672658485983,68.25,11.006,10.998,30.0]
[1672658487430,68.25,11.006,10.997,24.0503]
[1672658488092,68.25,11.006,10.998,30.0]
[1672658490891,68.25,11.006,10.997,54.0503]
[1672658491329,68.25,11.006,10.997,24.0503]
[1672658494579,100.0,10.999,10.998,30.0]
[1672658496485,100.0,10.999,10.996,162.2132]
[1672658496681,100.0,10.999,10.996,30.0]
[1672658499850,100.0,10.999,10.995,98.32]
[1672658500253,100.0,10.999,10.995,114.12730786]
[1672658500791,100.0,10.999,10.995,45.80730786]
[1672658504587,68.25,11.006,10.997,30.0]
[1672658504779,92.7355,11.007,10.999,30.0]
[1672658505213,92.7355,11.007,11.0,15.80730786]
[1672658505420,92.7355,11.007,10.999,30.0]
[1672658505953,92.7355,11.007,10.998,24.5355]
[1672658506145,30.0,11.006,10.998,24.5355]
[1672658506477,30.0,11.006,10.998,54.5355]
[1672658506796,92.7355,11.007,10.998,54.5355]
[1672658506994,92.7355,11.007,10.999,30.0]
[1672658508480,30.0,11.006,10.998,54.5355]
[1672658508676,30.0,11.006,10.998,24.5355]
[1672658508887,68.25,11.005,10.998,24.5355]
[1672658509320,68.25,11.005,10.998,54.5355]
[1672658510051,68.25,11.005,10.998,24.5355]
[1672658510268,68.25,11.005,10.998,54.5355]
[1672658510667,30.0,11.005,10.998,54.5355]
[1672658510879,68.25,11.006,10.998,54.5355]
[1672658511848,30.0,11.005,10.998,24.5355]
[1672658513828,30.0,11.003,10.998,24.5355]
[1672658515314,68.26,11.004,10.998,24.5355]
[1672658516370,30.0,11.005,10.998,24.5355]
[1672658516557,68.26,11.004,10.998,24.5355]
[1672658517836,30.0,11.005,10.998,24.5355]
[1672658518064,68.26,11.004,10.998,24.5355]
[1672658518882,30.0,11.005,10.998,24.5355]
[1672658519093,68.25,11.006,10.998,54.5355]
[1672658519517,68.25,11.006,10.998,24.5355]
[1672658521596,68.25,11.006,10.998,54.5355]
[1672658521917,68.25,11.006,10.998,24.5355]
[1672658522131,30.0,11.005,10.998,24.5355]
[1672658522349,68.26,11.004,10.998,24.5355]
[1672658525209,30.0,11.005,10.998,24.5355]
[1672658525389,68.26,11.004,10.998,24.5355]
[1672658525601,68.26,11.004,10.999,30.0]
[1672658525925,68.25,11.006,10.999,30.0]
[1672658526549,68.25,11.006,10.998,24.5355]
[1672658526768,30.0,11.005,10.998,24.5355]
[1672658526977,68.26,11.004,10.998,24.5355]
[1672658527802,68.26,11.004,10.998,54.5355]
[1672658528013,68.25,11.006,10.998,54.5355]
[1672658528224,30.0,11.005,10.998,24.5355]
[1672658528429,68.26,11.004,10.998,24.5355]
[1672658528772,68.25,11.006,10.998,54.5355]
[1672658529482,68.25,11.006,10.998,24.5355]
[1672658529692,30.0,11.005,10.998,24.5355]
[1672658530129,68.25,11.006,10.998,54.5355]
[1672658531496,68.25,11.006,10.999,17.0]
[1672658531697,24.4955,11.007,10.999,17.0]
[1672658531914,24.4955,11.007,11.0,30.0]
[1672658533054,24.4955,11.007,10.999,69.8986]
[1672658533270,24.4955,11.007,10.999,22.8986]
[1672658535598,30.0,11.006,10.999,22.8986]
[1672658537388,122.7355,11.007,10.999,22.8986]
[1672658537389,92.7355,11.007,10.999,22.8986]
[1672658538227,30.0,11.006,10.999,22.8986]
[1672658540014,92.7355,11.007,10.999,22.8986]
[1672658541591,30.0,11.006,10.999,22.8986]
[1672658541798,68.25,11.005,10.999,22.8986]
[1672658543041,30.0,11.005,10.999,22.8986]
[1672658543777,68.25,11.006,10.999,22.8986]
[1672658544932,30.0,11.005,10.999,22.8986]
[1672658545672,68.26,11.004,10.999,22.8986]
[1672658548111,30.0,11.004,10.999,22.8986]
[1672658548516,68.25,11.005,10.999,22.8986]
[1672658549561,68.25,11.006,10.999,22.8986]
[1672658550100,30.0,11.005,10.999,22.8986]
[1672658550313,68.25,11.006,10.999,22.8986]
[1672658553580,30.0,11.005,10.999,22.8986]
[1672658553766,68.26,11.004,10.999,22.8986]
[1672658556835,30.0,11.003,10.999,22.8986]
[1672658557572,30.0,11.003,10.997,140.0045]
[1672658559460,68.26,11.004,10.997,140.0045]
[1672658561139,68.25,11.005,10.997,140.0045]
[1672658561353,68.25,11.005,10.997,163.1198]
[1672658561763,30.0,11.004,10.997,163.1198]
[1672658563220,30.0,11.004,10.984,155.3405482]
[1672658563432,9.4,11.0,10.99,30.0]
[1672658563648,30.0,10.998,10.99,54.6242]
[1672658564070,23.6798,10.999,10.991,15.80730786]
[1672658564926,23.6798,10.999,10.992,17.0]
[1672658565134,23.6798,10.999,10.993,30.0]
[1672658565341,23.6798,10.999,10.993,45.80730786]
[1672658566178,23.6798,10.999,10.993,30.0]
[1672658566373,23.6798,10.999,10.99,54.6242]
[1672658566595,23.6798,10.999,10.992,30.0]
[1672658567343,23.6798,10.999,10.992,45.80730786]
[1672658569550,23.6798,10.999,10.991,17.0]
[1672658569765,23.6798,10.999,10.99,70.43150786]
[1672658570580,23.6798,10.999,10.991,17.0]
[1672658570806,23.6798,10.999,10.99,79.83150786]
[1672658573413,23.6798,10.999,10.992,30.0]
[1672658573847,23.6798,10.999,10.993,32.80730786]
[1672658574901,23.6798,10.999,10.992,30.0]
[1672658575855,23.6798,10.999,10.991,30.0]
[1672658576058,23.6798,10.999,10.99,64.0242]
[1672658576269,23.6798,10.999,10.99,54.6242]
[1672658580380,23.6798,10.999,10.99,70.43150786]
[1672658580589,23.6798,10.999,10.991,17.0]
[1672658585528,23.6798,10.999,10.99,54.6242]
[1672658588555,23.6798,10.999,10.99,24.6242]
[1672658588779,30.0,10.997,10.99,24.6242]
[1672658588991,68.31,10.996,10.99,24.6242]
[1672658589201,30.0,10.995,10.99,24.6242]
[1672658589408,68.31,10.996,10.99,24.6242]
[1672658590138,30.0,10.995,10.99,24.6242]
[1672658590361,68.31,10.996,10.99,24.6242]
[1672658590759,68.3,10.997,10.99,24.6242]
[1672658592019,30.0,10.997,10.99,24.6242]
[1672658592990,113.6024,10.998,10.99,24.6242]
[1672658593825,113.6024,10.998,10.99,54.6242]
[1672658595088,113.6024,10.998,10.99,24.6242]
[1672658595295,30.0,10.997,10.99,24.6242]
[1672658595928,30.0,10.995,10.99,24.6242]
[1672658596138,68.31,10.996,10.99,24.6242]
[1672658596552,121.0064,10.997,10.99,24.6242]
[1672658598354,91.0064,10.997,10.99,24.6242]
[1672658598670,91.0064,10.997,10.99,54.6242]
[1672658598994,91.0064,10.997,10.99,24.6242]
[1672658599301,30.0,10.996,10.99,24.6242]
[1672658599510,68.32,10.995,10.99,24.6242]
[1672658602763,68.31,10.996,10.99,24.6242]
[1672658605383,30.0,10.995,10.99,24.6242]
[1672658605595,68.32,10.994,10.99,24.6242]
[1672658605808,68.32,10.994,10.989,113.4579]
[1672658606343,68.31,10.996,10.989,113.4579]
[1672658606553,30.0,10.995,10.989,113.4579]
[1672658607809,68.32,10.994,10.989,113.4579]
[1672658608027,68.32,10.995,10.989,113.4579]
[1672658608350,30.0,10.994,10.989,113.4579]
[1672658608655,30.0,10.994,10.974,154.15332946]
[1672658608869,9.36,10.99,10.978,165.83961232]
[1672658609086,92.5804,10.989,10.98,30.0]
[1672658610035,24.2304,10.989,10.98,30.0]
[1672658610258,92.5804,10.989,10.98,30.0]
[1672658611302,24.2304,10.989,10.98,30.0]
[1672658611918,24.2304,10.989,10.981,17.0]
[1672658612993,24.2304,10.989,10.98,30.0]
[1672658613710,24.2304,10.989,10.981,17.0]
[1672658617710,24.2304,10.989,10.979,53.795]
[1672658617927,24.2304,10.989,10.98,33.337]
[1672658618552,92.5804,10.989,10.98,33.337]
[1672658618781,24.2304,10.989,10.98,33.337]
[1672658619605,68.33,10.993,10.981,17.0]
[1672658619817,92.1175,10.996,10.982,56.709]
[1672658620002,92.1175,10.996,10.984,30.0]
[1672658620219,92.1175,10.996,10.985,50.2844]
[1672658620439,92.1175,10.996,10.986,30.0]
[1672658620638,92.1175,10.996,10.986,52.6489]
[1672658624644,68.31,10.996,10.986,52.6489]
[1672658624965,9.37,11.01,10.99,47.02]
[1672658625182,46.55,11.008,10.991,175.0799]
[1672658625374,30.0,11.006,10.992,30.0]
[1672658625587,30.0,11.006,10.993,196.586]
[1672658625789,46.55,11.007,10.995,30.0]
[1672658625996,46.55,11.007,10.996,129.1278]
[1672658626204,68.25,11.006,10.996,113.9478]
[1672658626421,30.0,11.005,10.996,113.9478]
[1672658626644,88.26,11.004,10.988,115.3384]
[1672658626859,30.0,11.003,10.989,43.56]
[1672658627048,30.0,11.001,10.989,59.36730786]
[1672658627373,20.0,11.0,10.989,174.70570786]
[1672658627591,164.9379,11.002,10.991,30.0]
[1672658627592,68.27,11.002,10.991,30.0]
[1672658627906,68.26,11.004,10.992,42.13130786]
[1672658628100,68.26,11.004,10.993,50.0]
[1672658628310,68.26,11.004,10.993,65.80730786]
[1672658628845,68.26,11.004,10.993,181.14570786]
[1672658629592,30.0,11.005,10.995,30.0]
[1672658629794,68.26,11.004,10.995,30.0]
[1672658631480,68.26,11.004,10.994,229.9899]
[1672658632208,68.26,11.004,10.995,30.0]
[1672658633366,68.26,11.004,10.994,229.9899]
[1672658633698,68.26,11.004,10.994,245.79720786]
[1672658633894,68.26,11.004,10.994,177.47720786]
[1672658634111,68.26,11.004,10.995,30.0]
[1672658634512,30.0,11.005,10.995,30.0]
[1672658634745,68.26,11.004,10.997,30.0]
[1672658635159,68.26,11.004,10.996,113.8726]
[1672658637797,30.0,11.002,10.989,22.5102]
[1672658637988,39.33,11.0,10.99,30.0]
[1672658638316,88.29,10.999,10.991,15.80730786]
[1672658638625,68.28,11.001,10.991,74.91730786]
[1672658638844,68.27,11.002,10.992,50.0]
[1672658639050,68.27,11.002,10.994,30.0]
[1672658639993,76.4477,11.007,10.994,30.0]
[1672658639994,30.0,11.003,10.994,30.0]
[1672658640206,68.27,11.002,10.994,30.0]
[1672658640732,30.0,11.003,10.994,30.0]
[1672658641148,68.26,11.004,10.994,30.0]
[1672658641357,68.26,11.004,10.996,30.0]
[1672658641782,68.26,11.004,10.995,24.9587]
[1672658642610,68.26,11.004,10.996,17.0]
[1672658642826,145.833,11.006,10.996,47.0]
[1672658643151,145.833,11.006,10.998,30.0]
[1672658643347,145.833,11.006,10.997,91.9377]
[1672658643348,54.5169,11.006,10.997,91.9377]
[1672658643548,24.5169,11.006,10.998,30.0]
[1672658644204,24.5169,11.006,10.997,91.9377]
[1672658645471,88.25,11.005,10.989,22.5102]
[1672658645694,30.0,11.004,10.99,20.0]
[1672658645908,68.27,11.003,10.991,30.0]
[1672658646116,68.26,11.004,10.992,254.2945]
[1672658646432,47.7463,11.005,10.993,45.80730786]
[1672658646635,47.7463,11.005,10.995,30.0]
[1672658646857,47.7463,11.005,10.997,30.0]
[1672658647045,47.7463,11.005,10.999,30.0]
[1672658649574,47.7463,11.005,10.998,68.3]
[1672658651156,47.7463,11.005,10.997,24.3455]
[1672658651360,30.0,11.003,10.997,24.3455]
[1672658653355,68.26,11.004,10.997,24.3455]
[1672658653777,47.7463,11.005,10.997,24.3455]
[1672658653986,30.0,11.003,10.997,24.3455]
[1672658655983,68.26,11.004,10.997,24.3455]
[1672658659889,47.7463,11.005,10.998,30.0]
[1672658660508,47.7463,11.005,10.997,92.6455]
[1672658660947,47.7463,11.005,10.998,30.0]
[1672658661341,30.0,11.004,10.997,24.3455]
[1672658661563,68.27,11.003,10.997,24.3455]
[1672658661883,30.0,11.002,10.997,24.3455]
[1672658662405,68.27,11.003,10.997,24.3455]
[1672658663027,30.0,11.002,10.997,24.3455]
[1672658663232,20.0,11.001,10.997,24.3455]
[1672658663453,30.0,11.0,10.991,1829.11933634]
[1672658663652,20.0,10.999,10.992,30.0]
[1672658663877,20.0,10.999,10.983,1860.451664]
[1672658664088,30.0,10.997,10.984,1928.66501691]
[1672658664303,22.7478,10.996,10.986,30.0]
[1672658664497,22.7478,10.996,10.987,1921.60895764]
[1672658664710,22.7478,10.996,10.988,1859.61873186]
[1672658664926,22.7478,10.996,10.99,30.0]
[1672658666379,68.27,11.003,10.991,85.34]
[1672658666598,68.24,11.007,10.992,185.6837]
[1672658666910,30.0,11.006,10.994,30.0]
[1672658667135,30.0,11.004,10.995,158.7537]
[1672658667345,30.0,11.002,10.995,158.7537]
[1672658667749,68.27,11.003,10.995,158.7537]
[1672658670699,68.27,11.003,10.996,30.0]
[1672658670907,68.25,11.005,10.996,30.0]
[1672658671144,68.25,11.005,10.996,163.6165]
[1672658671329,30.0,11.004,10.996,108.9925]
[1672658671539,30.0,11.002,10.994,30.0]
[1672658671748,20.0,11.001,10.993,1828.78655742]
[1672658672178,88.28,11.001,10.993,1828.78655742]
[1672658673115,88.28,11.001,10.994,30.0]
[1672658673662,20.0,11.001,10.994,30.0]
[1672658675960,20.0,11.001,10.992,30.0]
[1672658677245,20.0,11.001,10.99,1829.28577122]
[1672658677246,30.0,10.999,10.99,1829.28577122]
[1672658677551,68.3,10.998,10.99,1829.28577122]
[1672658677761,30.0,10.997,10.99,1829.28577122]
[1672658677963,68.31,10.996,10.99,1829.28577122]
[1672658681321,30.0,10.997,10.99,1829.28577122]
[1672658681525,68.31,10.996,10.99,1829.28577122]
[1672658682065,30.0,10.997,10.99,1829.28577122]
[1672658682375,68.31,10.996,10.99,1829.28577122]
[1672658683651,30.0,10.995,10.99,1829.28577122]
[1672658684367,30.0,10.995,10.99,1407.48830602]
[1672658684684,30.0,10.995,10.991,1407.48830602]
[1672658684892,30.0,10.993,10.989,24.4524]
[1672658687645,68.32,10.994,10.989,24.4524]
[1672658688572,68.32,10.994,10.97,350.11039306]
[1672658688573,30.0,10.992,10.982,53.95]
[1672658688789,88.34,10.991,10.981,53.96]
[1672658688987,88.34,10.991,10.982,30.0]
[1672658691429,24.5141,10.992,10.982,45.80730786]
[1672658691623,30.0,10.995,10.984,30.0]
[1672658691833,30.0,10.995,10.986,30.0]
[1672658692046,30.0,10.996,10.986,30.0]
[1672658692258,68.32,10.995,10.986,30.0]
[1672658692798,68.32,10.995,10.986,163.9201]
[1672658693006,30.0,10.994,10.986,133.9201]
[1672658693429,68.32,10.995,10.986,133.9201]
[1672658693652,68.32,10.995,10.987,30.0]
[1672658694905,30.0,10.996,10.987,45.80730786]
[1672658695208,30.0,10.996,10.989,30.0]
[1672658695416,30.0,10.996,10.988,135.0975]
[1672658696681,68.3,10.997,10.988,135.0975]
[1672658696894,68.3,10.997,10.989,30.0]
[1672658697099,68.3,10.997,10.988,135.0975]
[1672658697411,30.0,10.996,10.988,135.0975]
[1672658698783,30.0,10.994,10.988,135.0975]
[1672658699001,68.32,10.995,10.988,135.0975]
[1672658699316,23.9344,10.998,10.989,30.0]
[1672658699723,23.9344,10.998,10.99,53.82]
[1672658703303,23.9344,10.998,10.991,30.0]
[1672658706674,23.9344,10.998,10.993,30.0]
[1672658706885,22.8498,10.999,10.993,30.0]
[1672658707536,68.28,11.001,10.993,30.0]
[1672658707855,30.0,10.999,10.991,83.65]
[1672658708051,30.0,11.001,10.991,83.65]
[1672658708274,20.0,11.0,10.991,83.65]
[1672658713932,20.0,11.0,10.992,1526.45830602]
[1672658714135,20.0,11.0,10.993,30.0]
[1672658714462,30.0,10.999,10.993,53.61]
[1672658714675,20.0,11.0,10.993,83.61]
[1672658714868,20.0,11.0,10.993,30.0]
[1672658717001,20.0,11.0,10.992,1526.45830602]
[1672658717831,20.0,11.0,10.993,30.0]
[1672658718041,50.0,11.0,10.992,1526.45830602]
[1672658721008,30.0,10.999,10.992,1526.45830602]
[1672658721216,30.0,10.997,10.992,1526.45830602]
[1672658721951,68.31,10.996,10.992,1526.45830602]
[1672658722172,68.3,10.998,10.992,1526.45830602]
[1672658729605,30.0,10.998,10.992,1526.45830602]
[1672658729828,68.3,10.997,10.992,1526.45830602]
[1672658730240,83.8896,11.0,10.992,1526.45830602]
[1672658730874,68.29,10.999,10.992,1526.45830602]
[1672658733099,30.0,10.998,10.992,1526.45830602]
[1672658734788,68.29,10.999,10.992,1526.45830602]
[1672658735106,30.0,10.998,10.992,1526.45830602]
[1672658735301,68.29,10.999,10.992,1526.45830602]
[1672658735712,44.5196,11.0,10.993,30.0]
[1672658736136,30.0,11.009,10.993,30.0]
[1672658736455,112.3698,11.008,10.994,53.43]
[1672658736670,112.3698,11.008,10.992,1526.45830602]
[1672658736671,30.0,11.007,10.992,1526.45830602]
[1672658736865,30.0,11.005,10.99,30.0]
[1672658737204,30.0,11.005,10.99,53.8729]
[1672658737205,30.0,11.003,10.99,53.8729]
[1672658737403,112.4098,11.002,10.99,53.8729]
[1672658737613,112.4098,11.002,10.992,30.0]
[1672658738021,30.0,11.001,10.992,30.0]
[1672658738241,20.0,11.0,10.992,30.0]
[1672658738887,20.0,11.0,10.991,83.44]
[1672658739497,20.0,11.0,10.992,30.0]
[1672658740968,20.0,11.0,10.991,83.44]
[1672658741181,20.0,11.0,10.991,53.44]
[1672658741930,20.0,11.0,10.992,30.0]
[1672658743308,30.0,10.999,10.991,53.44]
[1672658743517,30.0,10.999,10.99,53.8729]
[1672658744243,112.1068,11.0,10.99,53.8729]
[1672658744449,112.1068,11.0,10.99,107.4529]
[1672658744662,112.1068,11.0,10.991,30.0]
[1672658746868,112.1068,11.0,10.99,53.8729]
[1672658747087,30.0,10.999,10.99,23.8729]
[1672658747274,68.3,10.998,10.99,23.8729]
[1672658747693,68.3,10.998,10.991,30.0]
[1672658748013,68.3,10.998,10.99,53.8729]
[1672658748226,68.3,10.998,10.99,23.8729]
[1672658749297,68.3,10.998,10.99,53.8729]
[1672658749901,30.0,10.998,10.99,23.8729]
[1672658751261,30.0,10.996,10.99,23.8729]
[1672658752980,68.3,10.997,10.99,23.8729]
[1672658756961,30.0,10.996,10.99,23.8729]
[1672658757496,30.0,10.996,10.991,1357.57467234]
[1672658758447,68.3,10.997,10.991,1357.57467234]
[1672658759291,30.0,10.996,10.991,1357.57467234]
[1672658760663,68.3,10.997,10.991,1357.57467234]
[1672658761062,68.3,10.998,10.991,1357.57467234]
[1672658761618,30.0,10.997,10.991,1357.57467234]
[1672658763606,68.3,10.998,10.991,1357.57467234]
[1672658764037,30.0,10.997,10.991,1357.57467234]
[1672658764768,68.3,10.998,10.991,1357.57467234]
[1672658764951,30.0,10.997,10.991,1356.57467234]
[1672658765479,68.3,10.998,10.991,1356.57467234]
[1672658766130,68.3,10.998,10.991,30.0]
[1672658767493,68.3,10.998,10.99,1969.33628023]
[1672658767703,68.3,10.998,10.991,30.0]
[1672658768017,68.3,10.998,10.99,1969.33628023]
[1672658768333,68.3,10.998,10.991,30.0]
[1672658769366,68.3,10.998,10.99,1969.33628023]
[1672658769790,68.3,10.998,10.991,30.0]
[1672658770200,22.825,10.999,10.991,30.0]
[1672658770423,91.115,10.999,10.991,30.0]
[1672658771185,91.115,10.999,10.99,1969.33628023]
[1672658771378,91.115,10.999,10.991,30.0]
[1672658771583,22.825,10.999,10.991,30.0]
[1672658771903,22.825,10.999,10.993,30.0]
[1672658773697,22.825,10.999,10.992,1881.51302272]
[1672658774635,22.825,10.999,10.993,30.0]
[1672658775057,22.825,10.999,10.992,1881.51302272]
[1672658775478,22.825,10.999,10.993,30.0]
[1672658775911,22.825,10.999,10.992,1881.51302272]
[1672658777058,52.825,10.999,10.992,1827.95302272]
[1672658777257,52.825,10.999,10.993,1538.43186238]
[1672658777479,22.825,10.999,10.993,1538.43186238]
[1672658781882,22.825,10.999,10.994,30.0]
[1672658782524,43.8129,11.0,10.993,1538.43186238]
[1672658783171,43.8129,11.0,10.994,30.0]
[1672658783900,43.8129,11.0,10.993,1538.43186238]
[1672658787362,43.8129,11.0,10.994,30.0]
[1672658789478,68.27,11.002,10.994,30.0]
[1672658789777,30.0,11.005,10.994,30.0]
[1672658789995,68.26,11.004,10.994,30.0]
[1672658790839,30.0,11.002,10.994,30.0]
[1672658791053,20.0,11.001,10.994,30.0]
[1672658791776,88.28,11.001,10.994,30.0]
[1672658792402,20.0,11.001,10.994,30.0]
[1672658795448,20.0,11.002,10.994,30.0]
[1672658796916,20.0,11.002,10.993,1538.43186238]
[1672658797446,20.0,11.002,10.994,30.0]
[1672658798810,68.28,11.001,10.994,30.0]
[1672658799030,20.0,11.0,10.994,30.0]
[1672658799545,20.0,11.001,10.994,30.0]
[1672658801130,50.0,11.002,10.994,30.0]
[1672658801331,92.2194,11.003,10.994,30.0]
[1672658801549,92.2194,11.003,10.994,83.54]
[1672658801764,23.9494,11.003,10.994,170.03177493]
[1672658801973,68.25,11.006,10.996,30.0]